[Event "*** Titled Tuesday Blitz"]
[Site "Chess.com"]
[Date "2020.03.03"]
[Round "8"]
[White "OparinGrigoriy"]
[Black "Chessalary"]
[Result "1-0"]
[WhiteElo "2994"]
[BlackElo "2315"]
[TimeControl "180+1"]
[EndTime "14:34:56 PST"]
[Termination "OparinGrigoriy won by checkmate"]

1. Nf3 {[%clk 0:03:00.9]} 1... Nf6 {[%clk 0:02:47.7]} 2. g3 {[%clk 0:03:01.8]}
2... g6 {[%clk 0:02:45.6]} 3. Bg2 {[%clk 0:03:02.7]} 3... Bg7 {[%clk 0:02:45.2]}
4. c4 {[%clk 0:03:03.6]} 4... O-O {[%clk 0:02:45.7]} 5. Nc3 {[%clk 0:03:04.5]}
5... d6 {[%clk 0:02:46.4]} 6. d4 {[%clk 0:03:04.6]} 6... Nbd7 {[%clk 0:02:47.3]}
7. O-O {[%clk 0:03:05.5]} 7... e5 {[%clk 0:02:47.9]} 8. e4 {[%clk 0:03:06]} 8...
c6 {[%clk 0:02:46.5]} 9. Qc2 {[%clk 0:03:06.2]} 9... exd4 {[%clk 0:02:18.2]} 10.
Nxd4 {[%clk 0:03:07.1]} 10... Nc5 {[%clk 0:02:18.5]} 11. Rd1 {[%clk 0:03:07.3]}
11... Qe7 {[%clk 0:02:11.7]} 12. Bg5 {[%clk 0:02:56.1]} 12... h6 {[%clk
0:02:06.3]} 13. Bf4 {[%clk 0:02:54.7]} 13... Ng4 {[%clk 0:02:05]} 14. Nf5 {[%clk
0:02:17.9]} 14... gxf5 {[%clk 0:02:05.9]} 15. Bxd6 {[%clk 0:02:18.4]} 15... Qg5
{[%clk 0:01:59]} 16. Bxc5 {[%clk 0:02:14]} 16... Re8 {[%clk 0:01:59.3]} 17. h3
{[%clk 0:02:10.7]} 17... Nf6 {[%clk 0:01:42.9]} 18. e5 {[%clk 0:02:04.5]} 18...
Ne4 {[%clk 0:01:38]} 19. Be3 {[%clk 0:02:00.4]} 19... Qe7 {[%clk 0:01:33.4]} 20.
Nxe4 {[%clk 0:01:58]} 20... fxe4 {[%clk 0:01:34.3]} 21. Qxe4 {[%clk 0:01:56.8]}
21... Qxe5 {[%clk 0:01:28.7]} 22. Qxe5 {[%clk 0:01:56.6]} 22... Bxe5 {[%clk
0:01:29.6]} 23. Rd2 {[%clk 0:01:56.4]} 23... Be6 {[%clk 0:01:24.4]} 24. Rc1
{[%clk 0:01:45.3]} 24... h5 {[%clk 0:01:17.8]} 25. f4 {[%clk 0:01:31.7]} 25...
Bg7 {[%clk 0:01:13.5]} 26. Kf2 {[%clk 0:01:29.7]} 26... Rad8 {[%clk 0:01:12.7]}
27. Rxd8 {[%clk 0:01:27.6]} 27... Rxd8 {[%clk 0:01:10.4]} 28. b3 {[%clk
0:01:28.2]} 28... a5 {[%clk 0:01:02.7]} 29. h4 {[%clk 0:01:17]} 29... a4 {[%clk
0:00:59.8]} 30. Bf3 {[%clk 0:01:16.9]} 30... axb3 {[%clk 0:00:51.9]} 31. axb3
{[%clk 0:01:17.8]} 31... Rd3 {[%clk 0:00:52.1]} 32. Rd1 {[%clk 0:01:03.3]} 32...
Rxb3 {[%clk 0:00:46.5]} 33. Rd8+ {[%clk 0:01:03.5]} 33... Kh7 {[%clk 0:00:39.9]}
34. Bxh5 {[%clk 0:01:03]} 34... Bxc4 {[%clk 0:00:36.9]} 35. Bf3 {[%clk
0:00:54.7]} 35... Rb2+ {[%clk 0:00:31.9]} 36. Kg1 {[%clk 0:00:54.8]} 36... Rb1+
{[%clk 0:00:27]} 37. Kg2 {[%clk 0:00:51.3]} 37... Rb2+ {[%clk 0:00:27.9]} 38.
Kg1 {[%clk 0:00:50.5]} 38... Rb1+ {[%clk 0:00:18]} 39. Kf2 {[%clk 0:00:51]}
39... Rb2+ {[%clk 0:00:17.8]} 40. Rd2 {[%clk 0:00:51.4]} 40... Rxd2+ {[%clk
0:00:08.9]} 41. Bxd2 {[%clk 0:00:52.3]} 41... f5 {[%clk 0:00:09.8]} 42. h5
{[%clk 0:00:49.9]} 42... Kh6 {[%clk 0:00:06.8]} 43. g4 {[%clk 0:00:48.8]} 43...
fxg4 {[%clk 0:00:05.6]} 44. Bxg4 {[%clk 0:00:49.7]} 44... Bf7 {[%clk 0:00:03.4]}
45. f5+ {[%clk 0:00:49.9]} 45... Kh7 {[%clk 0:00:04.3]} 46. Kg3 {[%clk
0:00:49.7]} 46... Bh6 {[%clk 0:00:04.5]} 47. Bc3 {[%clk 0:00:49.2]} 47... Bg7
{[%clk 0:00:04.8]} 48. f6 {[%clk 0:00:49.5]} 48... Bf8 {[%clk 0:00:05]} 49. Bf5+
{[%clk 0:00:49.8]} 49... Kh6 {[%clk 0:00:04.4]} 50. Kh4 {[%clk 0:00:48.9]} 50...
Bxh5 {[%clk 0:00:01.8]} 51. Bd2# {[%clk 0:00:49.2]} 1-0

[Event "*** Titled Tuesday Blitz"]
[Site "Chess.com"]
[Date "2020.03.03"]
[Round "8"]
[White "IMTominho"]
[Black "Parhamov"]
[Result "0-1"]
[WhiteElo "2849"]
[BlackElo "3067"]
[TimeControl "180+1"]
[EndTime "14:34:57 PST"]
[Termination "Parhamov won by resignation"]

1. d4 {[%clk 0:03:00.9]} 1... Nf6 {[%clk 0:03:00]} 2. c4 {[%clk 0:03:00.4]} 2...
e6 {[%clk 0:02:58.3]} 3. Nf3 {[%clk 0:03:00.4]} 3... d5 {[%clk 0:02:58]} 4. Nc3
{[%clk 0:02:59.9]} 4... dxc4 {[%clk 0:02:58]} 5. e3 {[%clk 0:02:54.4]} 5... a6
{[%clk 0:02:53.8]} 6. Bxc4 {[%clk 0:02:44.8]} 6... b5 {[%clk 0:02:51]} 7. Bb3
{[%clk 0:02:44.4]} 7... Bb7 {[%clk 0:02:45.4]} 8. O-O {[%clk 0:02:43.7]} 8...
Nbd7 {[%clk 0:02:43.8]} 9. Qe2 {[%clk 0:02:42.6]} 9... c5 {[%clk 0:02:42.7]} 10.
a4 {[%clk 0:02:26.2]} 10... b4 {[%clk 0:02:37.4]} 11. Nb1 {[%clk 0:02:24.1]}
11... Be7 {[%clk 0:02:35.9]} 12. Rd1 {[%clk 0:02:22.9]} 12... Qc7 {[%clk
0:02:33.9]} 13. Nbd2 {[%clk 0:02:19.9]} 13... O-O {[%clk 0:02:34.1]} 14. a5
{[%clk 0:02:17.1]} 14... Rfd8 {[%clk 0:02:33.3]} 15. Bc4 {[%clk 0:01:49]} 15...
h6 {[%clk 0:02:31.6]} 16. Nb3 {[%clk 0:01:38.1]} 16... e5 {[%clk 0:02:25.1]} 17.
dxe5 {[%clk 0:01:33.3]} 17... Nxe5 {[%clk 0:02:25.1]} 18. Nxe5 {[%clk
0:01:31.4]} 18... Qxe5 {[%clk 0:02:25.5]} 19. f3 {[%clk 0:01:25.6]} 19... Rxd1+
{[%clk 0:02:23.2]} 20. Qxd1 {[%clk 0:01:26.5]} 20... Rd8 {[%clk 0:02:23.9]} 21.
Qe2 {[%clk 0:01:24.9]} 21... Bd6 {[%clk 0:02:21.9]} 22. g3 {[%clk 0:01:14.1]}
22... Ne4 {[%clk 0:01:55.9]} 23. fxe4 {[%clk 0:00:49.1]} 23... Qxe4 {[%clk
0:01:55.6]} 24. Bd2 {[%clk 0:00:48.2]} 24... Qh1+ {[%clk 0:01:44.2]} 25. Kf2
{[%clk 0:00:46.2]} 25... Qxh2+ {[%clk 0:01:43.4]} 26. Ke1 {[%clk 0:00:45.3]}
26... Bxg3+ {[%clk 0:01:33.4]} 27. Kd1 {[%clk 0:00:45.1]} 27... Qh4 {[%clk
0:01:30.5]} 28. Nxc5 {[%clk 0:00:37.7]} 28... Qh1+ {[%clk 0:01:24.8]} 29. Kc2
{[%clk 0:00:37.3]} 29... Qxa1 {[%clk 0:01:22.2]} 30. Nxb7 {[%clk 0:00:33.7]}
30... Qa4+ {[%clk 0:01:21.1]} 31. b3 {[%clk 0:00:19]} 31... Qa2+ {[%clk
0:01:18.5]} 32. Kc1 {[%clk 0:00:16.8]} 32... Rd7 {[%clk 0:01:17]} 33. Nc5 {[%clk
0:00:14.9]} 33... Qa1+ {[%clk 0:01:16.9]} 34. Kc2 {[%clk 0:00:14.4]} 34... Rc7
{[%clk 0:01:13.8]} 35. Qf3 {[%clk 0:00:12.5]} 35... Be5 {[%clk 0:01:08.6]} 36.
Nxa6 {[%clk 0:00:08.9]} 36... Rd7 {[%clk 0:01:03.7]} 37. Bd5 {[%clk 0:00:04.7]}
37... Qb2+ {[%clk 0:00:52.4]} 38. Kd1 {[%clk 0:00:05]} 38... Bc3 {[%clk
0:00:51.7]} 39. Bc1 {[%clk 0:00:05.2]} 39... Qxb3+ {[%clk 0:00:50]} 40. Ke2
{[%clk 0:00:05.4]} 40... Rxd5 {[%clk 0:00:47.7]} 0-1

[Event "*** Titled Tuesday Blitz"]
[Site "Chess.com"]
[Date "2020.03.03"]
[Round "8"]
[White "Rsnr"]
[Black "Sashadav97"]
[Result "1-0"]
[WhiteElo "2793"]
[BlackElo "2556"]
[TimeControl "180+1"]
[EndTime "14:34:57 PST"]
[Termination "Rsnr won by resignation"]

1. d4 {[%clk 0:03:00.9]} 1... Nf6 {[%clk 0:02:59.6]} 2. c4 {[%clk 0:03:01.2]}
2... e6 {[%clk 0:02:59.8]} 3. Nf3 {[%clk 0:03:01.3]} 3... b6 {[%clk 0:03:00.1]}
4. a3 {[%clk 0:03:01.5]} 4... Bb7 {[%clk 0:03:00.1]} 5. Nc3 {[%clk 0:03:02.1]}
5... Ne4 {[%clk 0:03:00.3]} 6. Nxe4 {[%clk 0:03:01]} 6... Bxe4 {[%clk
0:03:01.2]} 7. Bf4 {[%clk 0:03:01.7]} 7... Be7 {[%clk 0:03:00.1]} 8. e3 {[%clk
0:03:02.1]} 8... d6 {[%clk 0:02:59.5]} 9. Bd3 {[%clk 0:03:02.7]} 9... Bb7 {[%clk
0:02:57.2]} 10. O-O {[%clk 0:03:02.7]} 10... Nd7 {[%clk 0:02:56.4]} 11. b4
{[%clk 0:02:56.7]} 11... g5 {[%clk 0:02:54.8]} 12. Bg3 {[%clk 0:02:55]} 12... h5
{[%clk 0:02:55.7]} 13. h3 {[%clk 0:02:25.9]} 13... h4 {[%clk 0:02:54.9]} 14. Bh2
{[%clk 0:02:25.6]} 14... g4 {[%clk 0:02:55.8]} 15. hxg4 {[%clk 0:02:22.5]} 15...
h3 {[%clk 0:02:56.3]} 16. gxh3 {[%clk 0:02:11.6]} 16... Rxh3 {[%clk 0:02:57.2]}
17. e4 {[%clk 0:02:12.3]} 17... Nf6 {[%clk 0:02:12]} 18. Kg2 {[%clk 0:02:12.1]}
18... Rh8 {[%clk 0:02:04.5]} 19. Nd2 {[%clk 0:02:12.4]} 19... Qd7 {[%clk
0:02:03.2]} 20. f3 {[%clk 0:02:12.1]} 20... d5 {[%clk 0:01:59.6]} 21. cxd5
{[%clk 0:01:57.5]} 21... O-O-O {[%clk 0:01:52.4]} 22. Rc1 {[%clk 0:01:55]} 22...
Bd6 {[%clk 0:01:41.2]} 23. Bxd6 {[%clk 0:01:47.4]} 23... Qxd6 {[%clk 0:01:40.4]}
24. e5 {[%clk 0:01:48.1]} 24... Qxd5 {[%clk 0:01:38.6]} 25. exf6 {[%clk
0:01:48.2]} 25... Qxd4 {[%clk 0:01:39.1]} 26. Be4 {[%clk 0:01:45.2]} 26... Qe3
{[%clk 0:01:17.6]} 27. Bxb7+ {[%clk 0:01:24.5]} 27... Kxb7 {[%clk 0:01:16.3]}
28. Rc2 {[%clk 0:01:25.4]} 28... Qf4 {[%clk 0:01:13.4]} 29. Rh1 {[%clk
0:01:25.1]} 29... Rxh1 {[%clk 0:01:06.6]} 30. Qxh1 {[%clk 0:01:26]} 30... Rxd2+
{[%clk 0:01:06.4]} 31. Rxd2 {[%clk 0:01:26.9]} 31... Qxd2+ {[%clk 0:01:06.8]}
32. Kg3 {[%clk 0:01:26.8]} 32... Qd6+ {[%clk 0:01:04]} 33. f4+ {[%clk 0:01:27]}
33... c6 {[%clk 0:01:01.6]} 34. Qh7 {[%clk 0:01:22.6]} 34... Qd7 {[%clk
0:01:00.4]} 35. g5 {[%clk 0:01:22.9]} 35... c5 {[%clk 0:01:00.3]} 36. Qe4+
{[%clk 0:01:22.4]} 36... Kc7 {[%clk 0:00:58.7]} 37. Qe5+ {[%clk 0:00:51.9]}
37... Kc6 {[%clk 0:00:55.8]} 38. Qe4+ {[%clk 0:00:42.4]} 38... Kc7 {[%clk
0:00:48.8]} 39. g6 {[%clk 0:00:39.6]} 39... fxg6 {[%clk 0:00:43.9]} 40. Qxg6
{[%clk 0:00:39.5]} 40... Qd4 {[%clk 0:00:41.7]} 41. Qf7+ {[%clk 0:00:39.7]}
41... Kb8 {[%clk 0:00:39.6]} 42. Qe8+ {[%clk 0:00:40.2]} 42... Kb7 {[%clk
0:00:39.4]} 43. Qe7+ {[%clk 0:00:41.1]} 43... Ka6 {[%clk 0:00:38.8]} 44. Qxe6
{[%clk 0:00:37.3]} 44... Qd3+ {[%clk 0:00:34.3]} 45. Kh4 {[%clk 0:00:37.1]}
45... Qg6 {[%clk 0:00:29.9]} 46. bxc5 {[%clk 0:00:36.4]} 46... Qh6+ {[%clk
0:00:27]} 47. Kg3 {[%clk 0:00:36.6]} 47... Qg6+ {[%clk 0:00:27.6]} 48. Kf2
{[%clk 0:00:33]} 48... Kb5 {[%clk 0:00:20.2]} 49. c6 {[%clk 0:00:29.1]} 49...
Kc5 {[%clk 0:00:19.5]} 50. c7 {[%clk 0:00:26.8]} 1-0

[Event "*** Titled Tuesday Blitz"]
[Site "Chess.com"]
[Date "2020.03.03"]
[Round "8"]
[White "cottage_cheese"]
[Black "HashtagChess"]
[Result "1-0"]
[WhiteElo "2340"]
[BlackElo "1619"]
[TimeControl "180+1"]
[EndTime "14:35:00 PST"]
[Termination "cottage_cheese won by resignation"]

1. e4 {[%clk 0:03:00.9]} 1... e6 {[%clk 0:02:58.9]} 2. d4 {[%clk 0:03:00.1]}
2... d5 {[%clk 0:02:54.5]} 3. Nd2 {[%clk 0:02:59.5]} 3... Nf6 {[%clk 0:02:53.9]}
4. e5 {[%clk 0:02:59.3]} 4... Nfd7 {[%clk 0:02:54.5]} 5. Bd3 {[%clk 0:02:59.5]}
5... c5 {[%clk 0:02:55]} 6. c3 {[%clk 0:03:00.1]} 6... Nc6 {[%clk 0:02:55.5]} 7.
Ne2 {[%clk 0:02:59.1]} 7... cxd4 {[%clk 0:02:54.2]} 8. cxd4 {[%clk 0:03:00]}
8... f6 {[%clk 0:02:54.4]} 9. exf6 {[%clk 0:03:00]} 9... Nxf6 {[%clk 0:02:55.3]}
10. Nf3 {[%clk 0:03:00.1]} 10... Bd6 {[%clk 0:02:55.4]} 11. O-O {[%clk
0:03:00.3]} 11... O-O {[%clk 0:02:56]} 12. Bf4 {[%clk 0:02:58.9]} 12... Bxf4
{[%clk 0:02:56.5]} 13. Nxf4 {[%clk 0:02:59.6]} 13... Ne4 {[%clk 0:02:57]} 14.
Qc1 {[%clk 0:02:59.3]} 14... Qf6 {[%clk 0:02:48.1]} 15. Ne2 {[%clk 0:02:30.6]}
15... e5 {[%clk 0:02:30.4]} 16. dxe5 {[%clk 0:02:03.1]} 16... Nxe5 {[%clk
0:02:31.3]} 17. Nxe5 {[%clk 0:02:02.4]} 17... Qxe5 {[%clk 0:02:25.5]} 18. Qe3
{[%clk 0:01:25.8]} 18... Qxb2 {[%clk 0:01:28.4]} 19. Bxe4 {[%clk 0:01:24.8]}
19... dxe4 {[%clk 0:01:29.3]} 20. Qxe4 {[%clk 0:01:24.4]} 20... Bf5 {[%clk
0:01:29.6]} 21. Qd5+ {[%clk 0:01:02.7]} 21... Kh8 {[%clk 0:01:29.8]} 22. Ng3
{[%clk 0:01:01.6]} 22... Bg6 {[%clk 0:01:28.9]} 23. Rad1 {[%clk 0:00:55.6]}
23... Qf6 {[%clk 0:01:00.2]} 24. Qxb7 {[%clk 0:00:49.5]} 24... Rab8 {[%clk
0:00:46.1]} 25. Qxa7 {[%clk 0:00:43.4]} 25... Rb2 {[%clk 0:00:46]} 26. a4 {[%clk
0:00:36.5]} 26... Bc2 {[%clk 0:00:37.5]} 27. Rd2 {[%clk 0:00:23.9]} 27... Rb1
{[%clk 0:00:18.6]} 28. Rxc2 {[%clk 0:00:19.3]} 28... Rxf1+ {[%clk 0:00:18.9]}
29. Nxf1 {[%clk 0:00:19]} 29... Rf7 {[%clk 0:00:19.2]} 30. Rc8+ {[%clk
0:00:16.9]} 30... Rf8 {[%clk 0:00:19.6]} 31. Rxf8+ {[%clk 0:00:14.5]} 31... Qxf8
{[%clk 0:00:20.5]} 32. Qd4 {[%clk 0:00:13]} 32... h6 {[%clk 0:00:20.6]} 33. h3
{[%clk 0:00:13]} 33... Qa8 {[%clk 0:00:20.5]} 34. Qb4 {[%clk 0:00:11.9]} 34...
Qa7 {[%clk 0:00:19.5]} 35. a5 {[%clk 0:00:11.7]} 35... Kh7 {[%clk 0:00:20]} 36.
Qb6 {[%clk 0:00:12.1]} 36... Qa8 {[%clk 0:00:20.4]} 37. a6 {[%clk 0:00:12.1]}
37... Qf8 {[%clk 0:00:19.7]} 38. a7 {[%clk 0:00:11.1]} 38... Qa3 {[%clk
0:00:18.1]} 39. Qb7 {[%clk 0:00:09.6]} 39... Qd3 {[%clk 0:00:16.9]} 40. a8=Q
{[%clk 0:00:08.8]} 1-0

[Event "*** Titled Tuesday Blitz"]
[Site "Chess.com"]
[Date "2020.03.03"]
[Round "8"]
[White "Godzillator"]
[Black "Vegan4future"]
[Result "1/2-1/2"]
[WhiteElo "2416"]
[BlackElo "2529"]
[TimeControl "180+1"]
[EndTime "14:35:12 PST"]
[Termination "Game drawn by repetition"]

1. d4 {[%clk 0:03:00.9]} 1... Nf6 {[%clk 0:02:58.8]} 2. c4 {[%clk 0:03:01.3]}
2... g6 {[%clk 0:02:49.3]} 3. Nc3 {[%clk 0:03:01.4]} 3... Bg7 {[%clk 0:02:50.2]}
4. e4 {[%clk 0:03:01.7]} 4... d6 {[%clk 0:02:49.4]} 5. Be2 {[%clk 0:03:01.8]}
5... O-O {[%clk 0:02:50.3]} 6. Bg5 {[%clk 0:03:01.9]} 6... c5 {[%clk 0:02:48]}
7. d5 {[%clk 0:03:01.8]} 7... e6 {[%clk 0:02:48.5]} 8. Qd2 {[%clk 0:03:01.5]}
8... exd5 {[%clk 0:02:48.8]} 9. exd5 {[%clk 0:03:02]} 9... Qb6 {[%clk
0:02:49.1]} 10. Nf3 {[%clk 0:03:00.8]} 10... Bf5 {[%clk 0:02:48.4]} 11. O-O
{[%clk 0:02:58.9]} 11... Ne4 {[%clk 0:02:42.3]} 12. Nxe4 {[%clk 0:02:54.8]}
12... Bxe4 {[%clk 0:02:43.2]} 13. Rae1 {[%clk 0:02:53.3]} 13... Qxb2 {[%clk
0:02:28.2]} 14. Be7 {[%clk 0:02:42.8]} 14... Qb6 {[%clk 0:01:56.8]} 15. Bxf8
{[%clk 0:02:41.8]} 15... Bxf8 {[%clk 0:01:57.7]} 16. Bd3 {[%clk 0:02:38.5]}
16... Bxf3 {[%clk 0:01:57.5]} 17. gxf3 {[%clk 0:02:38.9]} 17... Nd7 {[%clk
0:01:57.9]} 18. f4 {[%clk 0:02:36.2]} 18... Bg7 {[%clk 0:01:51.7]} 19. Re2
{[%clk 0:02:33.8]} 19... Rf8 {[%clk 0:01:34.9]} 20. Rfe1 {[%clk 0:02:33.5]}
20... Qd8 {[%clk 0:01:35.3]} 21. Qe3 {[%clk 0:02:23.6]} 21... Bf6 {[%clk
0:01:30]} 22. Qh3 {[%clk 0:02:21.5]} 22... Nb6 {[%clk 0:01:23.3]} 23. f5 {[%clk
0:02:15.1]} 23... Kg7 {[%clk 0:00:57]} 24. Kh1 {[%clk 0:01:56.8]} 24... Na4
{[%clk 0:00:56.3]} 25. Bc2 {[%clk 0:01:49.5]} 25... Nc3 {[%clk 0:00:54.7]} 26.
Re3 {[%clk 0:01:40.5]} 26... Nxa2 {[%clk 0:00:54.5]} 27. Rg3 {[%clk 0:01:38.1]}
27... Nb4 {[%clk 0:00:54.3]} 28. Bb1 {[%clk 0:01:37]} 28... Re8 {[%clk
0:00:51.9]} 29. Reg1 {[%clk 0:01:36.3]} 29... g5 {[%clk 0:00:47.7]} 30. Qh5
{[%clk 0:01:35.1]} 30... h6 {[%clk 0:00:47.1]} 31. h4 {[%clk 0:01:34.9]} 31...
Rh8 {[%clk 0:00:45]} 32. Kg2 {[%clk 0:01:29.9]} 32... Qe7 {[%clk 0:00:42.9]} 33.
Re3 {[%clk 0:01:27.4]} 33... Qd8 {[%clk 0:00:35.2]} 34. Rh1 {[%clk 0:01:26.9]}
34... b5 {[%clk 0:00:31.7]} 35. hxg5 {[%clk 0:01:18.2]} 35... hxg5 {[%clk
0:00:32.6]} 36. Qxh8+ {[%clk 0:01:17.4]} 36... Qxh8 {[%clk 0:00:33.5]} 37. Rxh8
{[%clk 0:01:17.4]} 37... Kxh8 {[%clk 0:00:34.4]} 38. cxb5 {[%clk 0:01:17.2]}
38... Nxd5 {[%clk 0:00:33.3]} 39. Re8+ {[%clk 0:01:12.1]} 39... Kg7 {[%clk
0:00:33.6]} 40. Ra8 {[%clk 0:01:11]} 40... Nc3 {[%clk 0:00:33]} 41. Bd3 {[%clk
0:01:06.7]} 41... Bd4 {[%clk 0:00:33.4]} 42. f3 {[%clk 0:00:56.9]} 42... d5
{[%clk 0:00:32.8]} 43. Rd8 {[%clk 0:00:54.4]} 43... c4 {[%clk 0:00:32.7]} 44.
Bxc4 {[%clk 0:00:54.1]} 44... dxc4 {[%clk 0:00:31.3]} 45. Rxd4 {[%clk
0:00:53.5]} 45... Nxb5 {[%clk 0:00:32.2]} 46. Rxc4 {[%clk 0:00:53.3]} 46... Nd6
{[%clk 0:00:32.8]} 47. Rc5 {[%clk 0:00:52.9]} 47... Kf6 {[%clk 0:00:33.3]} 48.
Ra5 {[%clk 0:00:50.8]} 48... Nxf5 {[%clk 0:00:32.3]} 49. Rxa7 {[%clk 0:00:51]}
49... Nd4 {[%clk 0:00:31.9]} 50. Kg3 {[%clk 0:00:50.5]} 50... Kg6 {[%clk
0:00:29.2]} 51. Ra6+ {[%clk 0:00:49.5]} 51... Ne6 {[%clk 0:00:29]} 52. Kf2
{[%clk 0:00:45.6]} 52... Kf5 {[%clk 0:00:29]} 53. Ke3 {[%clk 0:00:45.1]} 53...
Ke5 {[%clk 0:00:29.1]} 54. Ra5+ {[%clk 0:00:44.9]} 54... Kf6 {[%clk 0:00:29.2]}
55. Ke4 {[%clk 0:00:44.4]} 55... Kg6 {[%clk 0:00:29.3]} 56. Ke5 {[%clk
0:00:43.9]} 56... Kg7 {[%clk 0:00:26.4]} 57. Ra6 {[%clk 0:00:42.3]} 57... Kg6
{[%clk 0:00:25.7]} 58. Rxe6+ {[%clk 0:00:40.8]} 58... fxe6 {[%clk 0:00:25.6]}
59. Kxe6 {[%clk 0:00:41.2]} 59... Kh5 {[%clk 0:00:25.3]} 60. Kf6 {[%clk
0:00:33.6]} 60... Kh6 {[%clk 0:00:24.6]} 61. Kf5 {[%clk 0:00:33.1]} 61... Kh5
{[%clk 0:00:24.9]} 62. Kf6 {[%clk 0:00:33.3]} 62... Kh6 {[%clk 0:00:25.1]} 63.
Kf5 {[%clk 0:00:33.6]} 63... Kh5 {[%clk 0:00:25.4]} 64. Kf6 {[%clk 0:00:33.9]}
1/2-1/2

[Event "*** Titled Tuesday Blitz"]
[Site "Chess.com"]
[Date "2020.03.03"]
[Round "8"]
[White "HouseOfDurin"]
[Black "kinga2008"]
[Result "1-0"]
[WhiteElo "2075"]
[BlackElo "1938"]
[TimeControl "180+1"]
[EndTime "14:35:12 PST"]
[Termination "HouseOfDurin won on time"]

1. d4 {[%clk 0:03:00.9]} 1... Nf6 {[%clk 0:02:58.3]} 2. Bg5 {[%clk 0:03:00]}
2... Ne4 {[%clk 0:02:54.3]} 3. h4 {[%clk 0:02:59.2]} 3... h6 {[%clk 0:02:52.1]}
4. Bf4 {[%clk 0:02:57.5]} 4... e5 {[%clk 0:02:52.4]} 5. Bxe5 {[%clk 0:02:37.1]}
5... d6 {[%clk 0:02:50.4]} 6. Bf4 {[%clk 0:02:33.9]} 6... Qf6 {[%clk 0:02:48.3]}
7. e3 {[%clk 0:02:22.6]} 7... Rg8 {[%clk 0:02:41.2]} 8. f3 {[%clk 0:02:00.6]}
8... g5 {[%clk 0:02:35.4]} 9. hxg5 {[%clk 0:01:44]} 9... hxg5 {[%clk 0:02:33.7]}
10. fxe4 {[%clk 0:01:30.4]} 10... gxf4 {[%clk 0:02:31.4]} 11. Qf3 {[%clk
0:01:29.3]} 11... Bh6 {[%clk 0:02:15]} 12. Ne2 {[%clk 0:01:13.8]} 12... Bg4
{[%clk 0:02:10.3]} 13. Rxh6 {[%clk 0:01:12.8]} 13... Qxh6 {[%clk 0:02:00.6]} 14.
Qxf4 {[%clk 0:01:12.9]} 14... Qh4+ {[%clk 0:01:52.7]} 15. g3 {[%clk 0:01:01.2]}
15... Qh2 {[%clk 0:01:50]} 16. Nbc3 {[%clk 0:00:58.4]} 16... Na6 {[%clk
0:01:38.4]} 17. O-O-O {[%clk 0:00:54]} 17... O-O-O {[%clk 0:01:33.3]} 18. a3
{[%clk 0:00:47.7]} 18... Rde8 {[%clk 0:01:30.5]} 19. Rd2 {[%clk 0:00:33.6]}
19... Qh1 {[%clk 0:01:26.4]} 20. Nd5 {[%clk 0:00:28.4]} 20... Rxe4 {[%clk
0:01:10.9]} 21. Qxf7 {[%clk 0:00:25.5]} 21... Rge8 {[%clk 0:00:49.5]} 22. Nec3
{[%clk 0:00:20.6]} 22... Bh5 {[%clk 0:00:37.9]} 23. Qf5+ {[%clk 0:00:18.1]}
23... Kb8 {[%clk 0:00:36.2]} 24. Nxe4 {[%clk 0:00:18.1]} 24... Rxe4 {[%clk
0:00:30.7]} 25. g4 {[%clk 0:00:15.7]} 25... Bxg4 {[%clk 0:00:17.6]} 26. Qf8+
{[%clk 0:00:15.2]} 26... Bc8 {[%clk 0:00:17.6]} 27. Rd1 {[%clk 0:00:14.4]} 27...
Qh4 {[%clk 0:00:09.7]} 28. Bxa6 {[%clk 0:00:13.9]} 28... bxa6 {[%clk 0:00:07.7]}
29. Qg7 {[%clk 0:00:12.1]} 29... Qd8 {[%clk 0:00:04.9]} 30. Rf1 {[%clk
0:00:10.7]} 30... Kb7 {[%clk 0:00:03.7]} 31. Rf7 {[%clk 0:00:10.3]} 31... Kc6
{[%clk 0:00:02]} 32. Nxc7 {[%clk 0:00:07.6]} 32... Rxe3 {[%clk 0:00:01.7]} 33.
Qg2+ {[%clk 0:00:06]} 1-0